bitfinex/quotes_SOLUSD_20240822
["timestamp","ask_amount","ask_price","bid_price","bid_amount"]
[1724295984542,33.54,141.77,141.74,7.0551]
[1724295984957,62.3395,141.79,141.74,7.0551]
[1724295985184,62.3395,141.79,141.75,1.41084154]
[1724295985362,62.3395,141.79,141.74,7.0551]
[1724295985961,7.0532,141.78,141.73,7.0556]
[1724295986351,15.4214,141.79,141.75,7.0543]
[1724295986670,33.54,141.8,141.76,8.464575]
[1724295986874,40.5922,141.8,141.75,7.0545]
[1724295987188,33.54,141.78,141.74,7.0551]
[1724295988475,33.54,141.78,141.75,7.0545]
[1724295989267,7.0522,141.8,141.75,7.0545]
[1724295989574,40.5922,141.8,141.75,7.0545]
[1724295994497,33.54,141.8,141.76,7.054]
[1724295995393,33.54,141.78,141.72,17.6399]
[1724295995695,33.54,141.78,141.74,7.0547]
[1724295995888,33.54,141.78,141.75,7.0545]
[1724295996096,40.5922,141.8,141.75,7.0545]
[1724295996395,40.5922,141.8,141.76,1.41066519]
[1724295996894,33.54,141.8,141.76,8.46476519]
[1724295997089,40.5913,141.82,141.77,8.46425439]
[1724295997295,40.5913,141.82,141.77,7.0536]
[1724295997490,40.5913,141.82,141.78,1.41048551]
[1724295998669,40.5913,141.82,141.77,7.0536]
[1724295998870,7.0517,141.81,141.74,17.637]
[1724295999093,7.0517,141.81,141.76,7.0537]
[1724295999475,40.5913,141.82,141.77,7.0536]
[1724295999790,40.5913,141.82,141.78,7.0531]
[1724296000379,33.54,141.82,141.79,7.0526]
[1724296000786,33.54,141.82,141.78,7.053]
[1724296001013,33.54,141.82,141.79,1.41033565]
[1724296001701,33.54,141.82,141.78,7.053]
[1724296002311,33.54,141.82,141.78,8.46333992]
[1724296002489,6.0223,141.86,141.8,7.0521]
[1724296002490,33.54,141.84,141.8,7.0521]
[1724296002996,33.54,141.84,141.79,1.41024036]
[1724296002997,23.569,141.86,141.81,8.46172725]
[1724296003183,7.0493,141.86,141.81,8.46172725]
[1724296004194,7.0493,141.86,141.82,1.41007534]
[1724296004597,13.39,141.85,141.82,1.41007534]
[1724296005279,7.0488,141.87,141.82,8.46117534]
[1724296005593,13.39,141.86,141.83,8.46053186]
[1724296005798,7.0482,141.88,141.83,8.46053186]
[1724296005799,13.39,141.87,141.83,8.46053186]
[1724296006377,20.4388,141.87,141.83,7.0505]
[1724296006573,40.5088,141.87,141.83,7.0505]
[1724296006773,33.46,141.87,141.83,7.0505]
[1724296007897,40.5077,141.89,141.84,7.05]
[1724296008282,40.5077,141.89,141.85,1.40975586]
[1724296008595,40.5077,141.89,141.84,7.05]
[1724296008975,40.5077,141.89,141.84,8.45974098]
[1724296009181,35.0077,141.89,141.85,7.0496]
[1724296010185,35.0077,141.89,141.86,1.4097353]
[1724296010378,27.96,141.89,141.85,7.0496]
[1724296010579,27.96,141.89,141.86,1.40964612]
[1724296011286,27.96,141.89,141.85,7.0496]
[1724296011787,7.0473,141.9,141.85,7.0496]
[1724296012100,33.46,141.9,141.84,0.12549]
[1724296012484,33.46,141.9,141.87,7.0486]
[1724296014795,33.46,141.9,141.88,1.40947995]
[1724296015304,33.46,141.9,141.88,8.45747995]
[1724296015492,33.46,141.9,141.88,7.048]
[1724296015992,33.46,141.92,141.88,7.048]
[1724296016189,33.46,141.92,141.89,1.40935355]
[1724296016508,33.46,141.92,141.89,8.45675355]
[1724296016688,33.46,141.92,141.89,7.0474]
[1724296017089,0.8497023,141.96,141.9,1.40925794]
[1724296017292,0.8497023,141.96,141.91,7.0466]
[1724296017293,33.46,141.95,141.91,7.0466]
[1724296017604,33.46,141.93,141.91,17.6159]
[1724296017903,33.46,141.92,141.86,20.0]
[1724296018087,0.8497023,141.96,141.85,16.3677]
[1724296018286,33.46,141.89,141.85,16.3677]
[1724296018500,33.46,141.87,141.85,16.3677]
[1724296018706,33.46,141.87,141.84,17.6243]
[1724296018887,33.46,141.85,141.84,17.6243]
[1724296019081,40.5077,141.89,141.84,17.6243]
[1724296019082,33.46,141.87,141.84,17.6243]
[1724296019282,33.46,141.87,141.84,24.6743]
[1724296019479,33.46,141.87,141.84,17.6243]
[1724296019682,33.46,141.85,141.81,17.629]
[1724296019910,7.0497,141.85,141.8,7.0518]
[1724296020084,33.46,141.82,141.8,7.0518]
[1724296020289,33.46,141.82,141.77,15.6508]
[1724296020583,33.46,141.8,141.74,15.6508]
[1724296020897,7.0506,141.84,141.79,7.0526]
[1724296021098,30.96,141.82,141.79,7.0526]
[1724296023808,30.96,141.82,141.77,17.6336]
[1724296024014,30.96,141.82,141.78,42.62549]
[1724296024302,6.2392,141.9,141.8,16.1126]
[1724296024514,33.46,141.87,141.8,16.1126]
[1724296024811,33.46,141.87,141.84,7.0501]
[1724296025001,33.46,141.87,141.85,8.45928521]
[1724296025316,33.46,141.87,141.84,7.0501]
[1724296026104,33.46,141.89,141.85,7.0496]
[1724296026502,33.46,141.89,141.86,1.40967937]
[1724296026903,33.46,141.91,141.86,19.03257937]
[1724296027088,33.46,141.91,141.87,1.40949803]
[1724296027790,33.46,141.91,141.87,8.45799803]
[1724296028111,40.5057,141.93,141.87,7.0482]
[1724296028286,33.46,141.91,141.87,7.0482]
[1724296028607,33.46,141.91,141.86,24.6719]
[1724296028811,40.5067,141.91,141.86,24.6719]
[1724296028985,33.46,141.89,141.86,17.6229]
[1724296029190,33.46,141.91,141.87,45.0]
[1724296029488,33.46,141.91,141.86,17.6229]
[1724296029792,33.46,141.91,141.86,24.6719]
[1724296029987,33.46,141.91,141.87,8.45818882]
[1724296030209,33.46,141.91,141.87,7.0486]
[1724296030414,33.46,141.91,141.86,24.672]
[1724296030612,33.46,141.91,141.82,6.4856]
[1724296030613,33.46,141.88,141.84,7.0498]
[1724296030792,33.46,141.88,141.8,16.1126]
[1724296031121,33.46,141.88,141.84,7.0501]
[1724296032004,33.46,141.88,141.85,7.0496]
[1724296032209,33.46,141.88,141.86,7.0491]
[1724296032430,33.46,141.9,141.86,7.0491]
[1724296032601,33.46,141.9,141.87,1.40957946]
[1724296032910,33.46,141.9,141.87,8.45817946]
[1724296033408,33.46,141.9,141.87,7.0486]
[1724296033707,33.46,141.9,141.86,8.45863426]
[1724296033889,33.46,141.9,141.87,7.0486]
[1724296034088,33.46,141.9,141.88,1.40946244]
[1724296034399,40.5062,141.92,141.87,7.0486]
[1724296034600,33.46,141.92,141.88,8.45750765]
[1724296035105,15.8689,141.95,141.85,17.624]
[1724296035106,33.46,141.9,141.85,17.624]
[1724296035286,7.37276412,141.93,141.89,7.0476]
[1724296035613,33.46,141.93,141.89,7.0476]
[1724296036194,33.46,141.91,141.87,24.6691]
[1724296036816,33.46,141.91,141.88,7.0481]
[1724296038114,33.46,141.91,141.87,17.6206]
[1724296038526,33.46,141.89,141.85,7.0496]
[1724296039113,33.46,141.89,141.86,8.4587365]
[1724296039618,33.46,141.89,141.86,7.0491]
[1724296043531,6.036,141.91,141.87,8.45813654]
[1724296043698,33.46,141.91,141.87,7.0485]
[1724296045922,33.46,141.91,141.88,1.40947581]
[1724296046100,33.46,141.93,141.89,7.0476]
[1724296046302,40.5057,141.93,141.89,7.0476]
[1724296047419,13.40769808,141.94,141.86,17.6221]
[1724296047420,33.46,141.91,141.86,17.6221]
[1724296047634,33.46,141.89,141.86,24.6712]
[1724296048716,40.5078,141.89,141.8,16.1126]
[1724296048917,33.46,141.89,141.81,20.0]
[1724296049821,30.96,141.89,141.81,20.0]
[1724296050328,30.96,141.89,141.86,7.0491]
[1724296050628,30.96,141.89,141.86,17.6229]
[1724296050808,30.96,141.89,141.86,24.672]
[1724296052128,30.96,141.89,141.86,17.6229]
[1724296052335,38.0078,141.89,141.84,7.0497]
[1724296052725,30.96,141.89,141.85,7.0496]
[1724296053528,7.0473,141.9,141.85,7.0496]
[1724296053736,40.5067,141.91,141.86,8.45879684]
[1724296054240,33.46,141.91,141.84,24.6743]
[1724296054409,33.46,141.87,141.84,17.6246]
[1724296054916,33.46,141.87,141.85,8.45951757]
[1724296055120,15.0442,141.9,141.85,7.0496]
[1724296055629,15.0442,141.9,141.84,17.6246]
[1724296055630,15.0442,141.9,141.86,7.0487]
[1724296056343,22.41508284,141.9,141.86,7.0487]
[1724296056550,22.41508284,141.9,141.84,17.6246]
[1724296056712,22.41508284,141.9,141.84,24.6743]
[1724296056713,7.0479,141.89,141.84,24.6743]
[1724296056914,7.0479,141.89,141.85,7.0496]
[1724296058737,29.46238284,141.9,141.85,7.0496]
[1724296058946,29.46238284,141.9,141.84,17.6246]
[1724296058947,7.0482,141.88,141.84,17.6246]
[1724296059149,33.46,141.89,141.84,17.6246]
[1724296059816,33.46,141.89,141.84,24.6743]
[1724296060016,33.46,141.89,141.85,7.0495]
[1724296060826,29.46278284,141.9,141.85,8.45921781]
[1724296061029,29.46278284,141.9,141.85,7.0495]
[1724296062149,7.37088284,141.9,141.86,8.45881174]
[1724296062648,7.37088284,141.9,141.84,24.6744]
[1724296062823,7.0477,141.89,141.85,7.0496]
[1724296063021,14.41808284,141.9,141.85,7.0496]
[1724296064434,27.79808284,141.9,141.85,7.0496]
[1724296065030,13.38,141.88,141.84,24.6747]
[1724296066259,13.38,141.89,141.85,7.0494]
[1724296067366,13.38,141.87,141.84,17.6246]
[1724296068466,7.0486,141.88,141.84,24.6747]
[1724296069124,7.37088284,141.9,141.85,8.45949064]
[1724296069125,14.41848284,141.9,141.85,8.45949064]
[1724296069330,27.79848284,141.9,141.85,8.45949064]
[1724296069728,27.79848284,141.9,141.85,7.0496]
[1724296070429,13.38,141.88,141.85,7.0496]
[1724296070650,20.4282,141.88,141.84,24.6747]
[1724296072526,7.0482,141.88,141.84,24.6747]
[1724296076635,33.46,141.85,141.76,15.8581]
[1724296076961,7.0508,141.83,141.78,24.6857]
[1724296080058,40.5101,141.85,141.78,17.6328]
[1724296080375,7.0492,141.86,141.81,7.0516]
[1724296080539,6.6,141.88,141.8,0.12549]
[1724296080741,56.6645831,141.89,141.83,7.0506]
[1724296080742,63.7126831,141.89,141.83,7.0506]
[1724296082069,63.7126831,141.89,141.83,8.4604399]
[1724296082682,63.7126831,141.89,141.83,7.0506]
[1724296082991,7.3722831,141.89,141.85,17.6241]
[1724296083287,7.3722831,141.89,141.86,1.40964978]
[1724296083857,7.3722831,141.89,141.86,8.45864978]
[1724296084386,7.3722831,141.89,141.86,8.4586495]
[1724296084986,7.3722831,141.89,141.86,7.049]
[1724296086085,7.3722831,141.89,141.87,7.0486]
[1724296086451,7.3722831,141.89,141.85,24.6735]
[1724296087686,7.3722831,141.89,141.87,16.6393]
[1724296087898,7.3722831,141.89,141.88,44.79419]
[1724296088071,0.8497023,141.96,141.93,7.0454]
[1724296088381,34.3097023,141.96,141.89,7.0472]
[1724296088584,33.46,141.94,141.89,7.0472]
[1724296089195,33.46,141.94,141.9,7.0471]
[1724296090370,0.8497023,141.96,141.89,33.46]
[1724296090588,0.8497023,141.96,141.95,7.0447]
[1724296090803,0.8497023,141.96,141.95,27.0447]
[1724296091299,0.8497023,141.96,141.95,72.0447]
[1724296091478,0.8497023,141.96,141.95,72.17019]
[1724296091684,0.8497023,141.96,141.95,52.17019]
[1724296092213,0.8497023,141.96,141.95,52.0447]
[1724296093176,0.8497023,141.96,141.95,7.0447]
[1724296093367,0.8497023,141.96,141.93,17.6132]
[1724296093667,0.8497023,141.96,141.87,50.0993]
[1724296093890,0.8497023,141.96,141.93,7.0455]
[1724296094096,0.8497023,141.96,141.94,7.0451]
[1724296095470,0.8497023,141.96,141.92,24.6601]
[1724296095895,34.3097023,141.96,141.92,17.6144]
[1724296096108,34.3097023,141.96,141.92,24.6604]
[1724296096799,34.3097023,141.96,141.93,7.0457]
[1724296096975,34.3097023,141.96,141.92,17.6144]
[1724296099016,0.8497023,141.96,141.93,7.0453]
[1724296101500,0.8497023,141.96,141.92,17.6144]
[1724296101812,0.8497023,141.96,141.92,24.6604]
[1724296102382,0.8497023,141.96,141.95,17.6118]
[1724296102915,0.8497023,141.96,141.87,61.03806418]
[1724296103113,0.8497023,141.96,141.88,65.25098]
[1724296103286,0.8497023,141.96,141.93,7.0456]
[1724296103686,34.3097023,141.96,141.92,7.0461]
[1724296104005,33.46,141.94,141.87,16.6393]
[1724296104398,34.3097023,141.96,141.87,16.6393]
[1724296104700,34.3097023,141.96,141.88,10.93876418]
[1724296105213,0.8497023,141.96,141.89,20.0]
[1724296105418,0.8497023,141.96,141.9,1.4090148]
[1724296105597,0.8497023,141.96,141.9,46.4090148]
[1724296105802,0.8497023,141.96,141.92,7.0459]
[1724296106019,0.8497023,141.96,141.94,7.0451]
[1724296109105,0.8497023,141.96,141.91,17.6159]
[1724296109106,13.36,141.95,141.91,17.6159]
[1724296109423,13.36,141.93,141.91,17.6159]
[1724296109716,13.36,141.93,141.91,24.6623]
[1724296110093,13.36,141.93,141.92,7.0462]
[1724296110413,13.36,141.93,141.91,24.6624]
[1724296110820,13.36,141.93,141.89,7.0476]
[1724296112447,7.0452,141.94,141.89,7.0476]
[1724296112597,40.4752,141.94,141.89,7.0476]
[1724296113208,33.43,141.94,141.9,7.047]
[1724296113684,33.43,141.92,141.88,17.6201]
[1724296113893,7.0449,141.95,141.89,7.0474]
[1724296114200,33.43,141.93,141.89,8.45677464]
[1724296114918,33.43,141.93,141.89,7.0474]
[1724296115424,40.4749,141.95,141.9,7.0471]
[1724296115749,40.4749,141.95,141.9,8.45647723]
[1724296116098,0.8497023,141.96,141.91,7.0465]
[1724296116287,34.2797023,141.96,141.91,7.0465]
[1724296117289,34.2797023,141.96,141.9,17.6171]
[1724296117522,34.2797023,141.96,141.93,7.0456]
[1724296118314,34.2797023,141.96,141.92,7.0461]
[1724296118591,34.2797023,141.96,141.92,8.45518664]
[1724296118911,0.8497023,141.96,141.92,8.45518664]
[1724296119157,0.8497023,141.96,141.91,45.0]
[1724296119311,0.8497023,141.96,141.93,7.0456]
[1724296119514,34.2797023,141.96,141.93,7.0456]
[1724296120422,34.2797023,141.96,141.92,17.6145]
[1724296121834,0.8497023,141.96,141.93,7.0456]
[1724296122626,0.8497023,141.96,141.93,8.45460676]
[1724296123241,0.8497023,141.96,141.92,17.6145]
[1724296123447,0.8497023,141.96,141.93,46.40884779]
[1724296123649,0.8497023,141.96,141.93,45.0]
[1724296124246,0.8497023,141.96,141.92,17.6145]
[1724296124423,0.8497023,141.96,141.94,7.0451]
[1724296127736,0.8497023,141.96,141.95,7.0447]
[1724296129047,0.8497023,141.96,141.94,17.6123]
[1724296129355,0.8497023,141.96,141.94,24.6575]
[1724296134463,14.2097023,141.96,141.94,24.6575]
[1724296137967,0.8497023,141.96,141.95,7.0447]
[1724296138467,0.8497023,141.96,141.94,24.6574]
[1724296138824,13.36,141.95,141.94,24.6574]
[1724296141445,13.36,141.95,141.94,17.6123]
[1724296145166,13.36,141.95,141.94,24.6575]
[1724296149742,13.36,141.95,141.94,17.6123]
[1724296150442,0.8497023,141.96,141.94,24.6575]
[1724296150644,14.2097023,141.96,141.94,24.6575]
[1724296151868,14.2097023,141.96,141.94,17.6123]
[1724296152071,7.0447,141.95,141.84,25.40407351]
[1724296152371,13.36,141.91,141.9,7.0471]
[1724296153268,13.36,141.91,141.89,24.6664]
[1724296153652,13.36,141.91,141.9,7.0472]
[1724296153857,15.6506,141.95,141.9,7.0472]
[1724296153858,13.36,141.93,141.9,7.0472]
[1724296156958,15.6506,141.95,141.91,8.45587089]
[1724296157158,0.8497023,141.96,141.92,0.12549]
[1724296157375,0.8497023,141.96,141.93,1.40886191]
[1724296157786,0.8497023,141.96,141.92,45.25098]
[1724296157974,0.8497023,141.96,141.94,7.0452]
[1724296159075,0.8497023,141.96,141.94,24.658]
[1724296159076,13.36,141.95,141.94,24.658]
[1724296159276,0.8497023,141.96,141.94,17.6128]
[1724296159473,13.36,141.95,141.94,17.6128]
[1724296164185,0.8497023,141.96,141.94,19.02180703]
[1724296164383,0.8497023,141.96,141.95,7.0447]
[1724296164565,14.2097023,141.96,141.95,7.0447]
[1724296165285,14.2097023,141.96,141.94,24.6579]
[1724296165485,14.2097023,141.96,141.94,17.6128]
[1724296166166,14.2097023,141.96,141.94,24.6579]
[1724296170099,13.9697023,141.96,141.94,24.6579]
[1724296170686,13.9697023,141.96,141.91,17.6163]
[1724296170889,13.36,141.93,141.92,7.0461]
[1724296172606,0.6097023,141.96,141.94,7.0452]
[1724296172607,13.36,141.95,141.94,7.0452]
[1724296173263,13.36,141.95,141.93,8.45456875]
[1724296173669,13.36,141.95,141.92,45.12549]
[1724296174107,13.36,141.95,141.92,52.17129]
[1724296175900,13.36,141.93,141.91,24.6628]
[1724296176996,13.36,141.93,141.91,17.6163]
[1724296177376,13.36,141.93,141.88,17.6201]
[1724296177678,13.36,141.91,141.88,17.6201]
[1724296178796,13.36,141.91,141.89,7.0476]
[1724296181014,13.36,141.91,141.88,24.6682]
[1724296181399,13.36,141.91,141.9,7.0472]
[1724296181913,13.9697023,141.96,141.94,7.0452]
[1724296182087,13.9697023,141.96,141.93,7.0456]
[1724296182291,13.9697023,141.96,141.92,17.6155]
[1724296182292,13.9697023,141.96,141.94,7.045]
[1724296182612,34.3740023,141.96,141.92,24.6617]
[1724296182810,13.36,141.93,141.91,7.0464]
[1724296183380,13.36,141.93,141.92,7.0462]
[1724296184816,13.36,141.95,141.9,1.40934261]
[1724296185112,13.36,141.95,141.89,0.12549]
[1724296185421,13.36,141.95,141.89,57.19937012]
[1724296185587,13.36,141.95,141.9,20.0]
[1724296185914,13.36,141.95,141.93,7.0456]
[1724296186291,0.6097023,141.96,141.9,20.0]
[1724296186502,13.9697023,141.96,141.91,46.65998386]
[1724296186684,13.9697023,141.96,141.91,46.53449386]
[1724296187100,13.9697023,141.96,141.92,0.12549]
[1724296187295,13.9697023,141.96,141.92,1.53437062]
[1724296187602,13.9697023,141.96,141.94,7.0451]
[1724296188900,13.9697023,141.96,141.94,24.6577]
[1724296189827,13.9697023,141.96,141.94,17.6126]
[1724296191098,13.9697023,141.96,141.94,24.6574]
[1724296192114,0.6097023,141.96,141.95,7.0447]
[1724296192702,0.6097023,141.96,141.95,53.45350578]
[1724296192908,0.6097023,141.96,141.95,53.57899578]
[1724296193103,0.1097023,141.96,141.95,53.57899578]
[1724296196631,0.1097023,141.96,141.95,73.57899578]
[1724296198311,0.1097023,141.96,141.95,72.17019]
[1724296200841,0.1097023,141.96,141.95,27.0447]
[1724296201135,0.1097023,141.96,141.95,7.0447]
[1724296201646,0.1097023,141.96,141.95,8.45355883]
[1724296202706,0.1097023,141.96,141.95,53.45355883]
[1724296203530,0.1097023,141.96,141.95,53.57904883]
[1724296204127,0.1097023,141.96,141.95,7.0447]
[1724296204836,0.1097023,141.96,141.95,28.45349742]
[1724296205133,0.1097023,141.96,141.95,27.0447]
[1724296205628,0.1097023,141.96,141.95,73.57886225]
[1724296207607,0.1097023,141.96,141.95,72.17019]
[1724296207913,0.1097023,141.96,141.95,73.57881459]
[1724296209615,0.1097023,141.96,141.95,73.70430459]
[1724296211515,13.88403277,142.05,142.04,7.0402]
[1724296211710,15.875,142.06,142.05,7.0397]
[1724296213204,22.3923,142.09,142.05,45.0]
[1724296213405,22.3923,142.09,142.04,0.12549]
[1724296213627,35.7523,142.09,142.06,7.0391]
[1724296218562,22.3923,142.09,142.06,7.0391]
[1724296220826,13.36,142.08,142.05,7.0396]
[1724296223627,22.3923,142.09,142.06,7.0391]
[1724296224123,22.3923,142.09,142.04,1.40789805]
[1724296224323,0.8497023,142.1,142.05,1.53315376]
[1724296224522,0.8497023,142.1,142.09,7.0377]
[1724296227858,0.8497023,142.1,142.0,25.39917351]
[1724296228153,13.36,142.07,142.01,1.40794027]
[1724296228357,13.36,142.09,142.0,25.39917351]
[1724296228554,13.36,142.09,142.05,7.0397]
[1724296229436,13.36,142.07,142.05,7.0397]
[1724296229640,13.36,142.07,142.03,7.0406]
[1724296231051,6.0491,142.08,142.05,7.0396]
[1724296231223,30.0,142.06,142.05,7.0396]
[1724296231746,30.0,142.06,142.04,7.0401]
[1724296232434,30.0,142.06,141.99,13.36]
[1724296232632,30.0,142.06,142.0,65.25098]
[1724296232927,30.0,142.06,142.04,7.0402]
[1724296233441,6.0491,142.08,142.06,7.0392]
[1724296233757,30.0,142.07,142.06,7.0392]
[1724296233966,30.0,142.07,142.06,52.0392]
[1724296234634,30.0,142.07,142.06,7.0392]
[1724296235145,14.2097023,142.1,142.06,7.0392]
[1724296236152,0.8497023,142.1,142.07,1.4077837]
[1724296236333,0.8497023,142.1,142.04,21.40758617]
[1724296236545,0.8497023,142.1,142.05,46.53307538]
[1724296236740,0.8497023,142.1,142.06,20.0]
[1724296236950,0.8497023,142.1,142.07,1.40753988]
[1724296237152,0.8497023,142.1,142.07,46.40753988]
[1724296237831,0.8497023,142.1,142.09,7.0377]
[1724296240262,0.8497023,142.1,142.09,87.0557807]
[1724296241440,0.8497023,142.1,142.09,85.64868]
[1724296242565,0.8497023,142.1,142.09,72.28868]
[1724296243341,0.8497023,142.1,142.09,72.0377]
[1724296246371,0.8497023,142.1,142.08,7.038]
[1724296246550,14.2097023,142.1,142.08,7.038]
[1724296248781,0.8497023,142.1,142.08,7.038]
[1724296251372,0.8497023,142.1,142.09,7.0377]
[1724296257289,0.8497023,142.1,142.08,7.0382]
[1724296257954,0.8497023,142.1,142.09,7.0377]
[1724296259659,0.8497023,142.1,142.09,72.16319]
[1724296259981,0.8497023,142.1,142.09,72.28868]
[1724296260571,0.8497023,142.1,142.09,72.0377]
[1724296261163,0.8497023,142.1,142.09,72.16319]
[1724296262364,0.8497023,142.1,142.09,27.0377]
[1724296266300,0.8497023,142.1,142.09,7.0377]
[1724296267396,0.8497023,142.1,142.08,7.0381]
[1724296268706,0.8497023,142.1,142.07,7.0386]
[1724296269069,0.8497023,142.1,142.08,7.0382]
[1724296269486,0.8497023,142.1,142.09,7.0377]
[1724296269711,30.8497023,142.1,142.09,7.0377]
[1724296271424,0.8497023,142.1,142.09,7.0377]
[1724296273083,0.8497023,142.1,142.09,52.16319]
[1724296274320,0.8497023,142.1,142.09,7.0377]
[1724296278216,30.8497023,142.1,142.09,7.0377]
[1724296278725,0.8497023,142.1,142.09,7.0377]
[1724296281405,0.8497023,142.1,142.08,7.0381]
[1724296281585,13.36,142.09,142.03,9.74607351]
[1724296281790,13.36,142.09,142.04,20.0]
[1724296282907,13.36,142.09,142.06,7.0391]
[1724296284320,13.36,142.09,142.04,20.0]
[1724296284321,13.36,142.07,141.99,15.7391]
[1724296284530,13.36,142.05,141.99,15.7391]
[1724296285200,13.36,142.05,142.03,7.0403]
[1724296285697,22.4424023,142.1,142.06,7.0388]
[1724296285899,35.8024023,142.1,142.06,7.0388]
[1724296286112,22.4424023,142.1,142.06,7.0388]
[1724296286419,13.36,142.09,142.06,7.0388]
[1724296286606,13.36,142.09,142.04,46.40806398]
[1724296286607,35.8024023,142.1,142.07,7.0386]
[1724296287300,35.8024023,142.1,142.06,7.0391]
[1724296288406,22.4424023,142.1,142.06,7.0391]
[1724296289722,22.4424023,142.1,142.04,45.0]
[1724296289896,22.4424023,142.1,142.05,7.0394]
[1724296290092,22.4424023,142.1,142.08,7.0382]
[1724296290392,16.0380023,142.1,142.08,7.0382]
[1724296291123,0.8497023,142.1,142.09,7.0377]
[1724296293624,0.8497023,142.1,142.09,72.16319]
[1724296293929,0.8497023,142.1,142.09,72.28868]
[1724296294228,0.8497023,142.1,142.09,73.69565218]
[1724296294405,0.8497023,142.1,142.09,72.28868]
[1724296295504,0.8497023,142.1,142.09,72.16319]
[1724296296527,0.8497023,142.1,142.09,72.28868]
[1724296300526,0.8497023,142.1,142.09,72.16319]
[1724296301142,0.8497023,142.1,142.08,7.0382]
[1724296302227,0.8497023,142.1,142.09,7.0377]
[1724296303949,0.8497023,142.1,142.08,7.0382]
[1724296309325,0.8497023,142.1,142.07,7.0387]
[1724296310031,34.1997023,142.1,142.02,15.3824]
[1724296310658,34.1997023,142.1,142.03,1.40781498]
[1724296310967,34.1997023,142.1,142.06,7.0391]
[1724296311334,34.1997023,142.1,142.07,7.0385]
[1724296311661,0.8497023,142.1,142.07,7.0385]
[1724296316459,0.8497023,142.1,142.08,7.0382]
[1724296316460,14.1897023,142.1,142.08,7.0382]
[1724296317864,14.1897023,142.1,142.07,7.0386]
[1724296318038,13.34,142.08,141.99,16.4067]
[1724296318230,13.34,142.08,142.0,20.0]
[1724296318857,13.34,142.08,142.05,7.0394]
[1724296322850,13.34,142.06,142.05,7.0394]
[1724296324473,13.34,142.06,142.03,7.0402]
[1724296324838,13.34,142.06,142.04,7.04]
[1724296326764,29.6764,142.06,142.03,7.0406]
[1724296329644,30.0,142.05,142.03,7.0406]
[1724296330652,13.34,142.04,142.0,20.0]
[1724296330854,13.34,142.02,142.0,7.0422]
[1724296332169,13.34,142.02,142.0,24.6473]
[1724296332374,13.34,142.02,142.0,17.6051]
[1724296332581,13.34,142.02,141.98,7.0431]
[1724296333250,13.34,142.0,141.97,24.6523]
[1724296334270,30.0,141.99,141.97,24.6523]
[1724296335776,13.34,141.98,141.95,7.0446]
[1724296335949,13.34,141.96,141.94,17.6125]
[1724296336661,13.34,141.96,141.91,17.6163]
[1724296336857,45.7061,141.95,141.91,17.6163]
[1724296337681,52.1551,141.95,141.91,24.663]
[1724296338176,52.1551,141.95,141.92,7.0461]
[1724296338379,52.1551,141.95,141.94,7.0452]
[1724296338877,30.0,141.95,141.94,7.0452]
[1724296339070,21.5201,141.99,141.9,13.34]
[1724296339272,21.5201,141.99,141.91,66.40893496]
[1724296339473,21.5201,141.99,141.92,0.25098]
[1724296340095,21.5201,141.99,141.97,7.0435]
[1724296341658,21.5201,141.99,141.95,17.6109]
[1724296342551,21.5201,141.99,141.96,7.0438]
[1724296343879,21.5201,141.99,141.97,7.0437]
[1724296344189,15.0558,141.99,141.98,7.0432]
[1724296344372,30.0,141.99,141.98,7.0432]
[1724296345362,54.9573,142.02,141.99,7.0425]
[1724296345671,30.0,142.0,141.99,7.0425]